Cogmind - Beta 13 @@@ ROGUE MODE // 2024.04.09 @ 16:41:33 Player: Not Alex Result: Destroyed by Y-45 Defender with Beam Rifle Performance ------------- Evolutions (1) 500 Regions Visited (3) 600 Robots Destroyed (32) 160 Value Destroyed (822) 822 Prototype IDs (1) 20 Alien Tech Used (0) 0 Bonus (0) 0 TOTAL SCORE: 2102 Bonus ------- None Cogmind --------- Core Integrity 0/400 Matter 230/300 Energy 194/350 System Corruption 0% Temperature Cool (74) Movement Treading (240) Ox1 Location -9/Storage Parts ------- > --- POWER (1) -------- Ion Engine > --- PROPULSION (2) --- Light Treads > --- UTILITY (4) ------ Large Storage Unit Small Battery Visual Processing Unit > --- WEAPON (2) ------- Light Cannon > --- INVENTORY (15) --- Light Treads Improved Treads Medium Matter Pod (54) Signal Interpreter Heavy EM Pulse Gun Improved Medium Laser Heavy Assault Rifle Peak State ------------ > --- POWER ------------ Light Ion Engine > --- PROPULSION ------- Light Treads Light Treads > --- UTILITY ---------- Large Storage Unit Small Battery Visual Processing Unit Propulsion Shielding > --- WEAPON ----------- Advanced Beam Cannon Rocket Launcher > --- INVENTORY -------- Signal Interpreter Heavy EM Pulse Gun Improved Medium Laser Light Assault Rifle Light Cannon Light Cannon Rocket Launcher [Rating: 14] Favorites ----------- Power Ion Engine Engine Ion Engine Power Core Light Nuclear Core Propulsion Light Treads Treads Light Treads Leg Aluminum Leg Utility Large Storage Unit Device Heat Sink Storage Large Storage Unit Processor Visual Processing Unit Protection Propulsion Shielding Weapon Light Assault Rifle Energy Gun Beam Rifle Energy Cannon Advanced Beam Cannon Ballistic Gun Light Assault Rifle Ballistic Cannon Light Cannon Launcher Rocket Launcher Build | -11 -10 -9 -9 ------- Run | Yrd Mat Mat Sto Slots Evolved 2 | . . 2 . Power . | . . . . Propulsion . | . . . . Utility 2 | . . 2 . Weapon . | . . . . Parts Attached 24 | 6 7 6 5 Power 4 | 1 1 1 1 Engine 3 | 1 . 1 1 Core 1 | . 1 . . Reactor . | . . . . Propulsion 6 | 2 3 . 1 Treads 5 | 2 2 . 1 Leg 1 | . 1 . . Wheel . | . . . . Hover . | . . . . Flight . | . . . . Utility 6 | 1 2 2 1 Device 1 | . . . 1 Storage 3 | 1 2 . . Processor 1 | . . 1 . Hackware . | . . . . Protection 1 | . . 1 . Artifact . | . . . . Weapon 8 | 2 1 3 2 Energy Gun 1 | . . . 1 Energy Cannon 1 | . . 1 . Ballistic Gun 2 | 2 . . . Ballistic Cannon 2 | . 1 . 1 Launcher 2 | . . 2 . Special Weapon . | . . . . Impact Weapon . | . . . . Slashing Weapon . | . . . . Piercing Weapon . | . . . . Special Melee Weapon . | . . . . Unidentified Prototypes 1 | . . 1 . Parts Lost 13 | . 4 1 8 Power 3 | . 1 1 1 Propulsion 4 | . 2 . 2 Utility 2 | . . . 2 Weapon 4 | . 1 . 3 Highest Loss Streak 7 | . 4 1 7 To Critical Strikes . | . . . . Average Slot Usage (%) 88 | . 85 99 80 Engine 6 | . 7 6 2 Core 3 | . 3 4 . Treads 18 | . 17 22 16 Leg 1 | . 2 . . Storage 23 | . 24 22 22 Processor 4 | . . 11 11 Protection 3 | . . 11 6 Energy Cannon 2 | . . 5 8 Ballistic Gun 13 | . 21 1 . Ballistic Cannon 5 | . 6 5 1 Launcher 3 | . . 9 6 Naked Turns . | . . . . Heaviest Build 34 | 13 30 34 33 Greatest Support 40 | 40 40 40 40 Greatest Overweight (x) 9 | . 8 . 9 Average Overweight (x) . | . . . . Largest Inventory Capacity 15 | 8 15 15 15 Average Capacity 13 | 6 13 15 15 Most Carried 12 | 2 6 12 12 Average Carried 4 | . 3 5 10 Final Capacity 15 | 8 15 15 15 Final Carried 12 | . 5 12 7 Class Distribution -------------------- 100% | Mutant Dominant Class ---------------- Mutant | -10/Materials Mutant | -9/Materials Mutant | -9/Storage Resources | -11 -10 -9 -9 ----------- Run | Yrd Mat Mat Sto Matter Collected 842 | 237 291 217 97 Remotely . | . . . . Salvage Created 1037 | . 421 297 319 Parts 58 | . 17 21 20 Haulers Intercepted 1 | . . 1 . Recyclers Shooed 3 | . 2 . 1 Parts Field Recycled . | . . . . Retrieved Matter . | . . . . Parts Self-Destructed . | . . . . Prevented . | . . . . Kills | -11 -10 -9 -9 ------- Run | Yrd Mat Mat Sto Combat Hostiles Destroyed 26 | . 8 8 10 Guns 6 | . 5 . 1 Cannons 16 | . 3 4 9 AOE 2 | . . 2 . Classes Destroyed 9 | . 5 4 . Worker 1 | . 1 . . Builder 1 | . . 1 . Tunneler 1 | . 1 . . Hauler 1 | . . 1 . Recycler 2 | . 2 . . Swarmer 8 | . 3 . 5 Grunt 10 | . 5 4 1 Duelist 1 | . . 1 . Sentry 7 | . . 3 4 Best Kill Streak 5 | . 4 5 3 Combat Bots Only 4 | . 3 4 3 Max Kills in Single Turn 2 | . 2 2 1 Gunslinging . | . . . . Exploded 1 | . . 1 . Melee . | . . . . Uniques/NPCs Destroyed . | . . . . Combat | -11 -10 -9 -9 -------- Run | Yrd Mat Mat Sto Hostile Shots Fired 255 | . 109 46 100 Missed 77 | . 36 12 29 Damage Taken 2177 | . 787 479 911 Core 591 | . 183 137 271 Absorbed by Shields . | . . . . Redirected to Shielding 53 | . . 26 27 Core Remaining (%) 63 | 100 26 . . Volleys Fired 120 | . 50 28 42 Largest 2 | . 2 2 2 Hottest 124 | . 55 68 124 Shots Fired 193 | . 99 43 51 Gun 87 | . 78 . 9 Cannon 91 | . 21 28 42 Launcher 15 | . . 15 . Special . | . . . . Kinetic 124 | . 99 15 10 Thermal 54 | . . 13 41 Explosive 15 | . . 15 . Electromagnetic . | . . . . Robot Hit Streak 10 | . 10 7 9 Robot Miss Streak 5 | . 4 2 5 Penetration Max . | . . . . Secondary Targets 1 | . 1 . . Max Gunslinging Chain 1 | . 1 . . Shots Hit Robots 116 | . 59 25 32 Core Hits 46 | . 20 14 12 Critical Kills 2 | . . 2 . Critical Parts Destroyed . | . . . . Critical Strikes 6 | . 2 3 1 Meltdown 2 | . . 2 . Blast 4 | . 2 1 1 Melee Attacks . | . . . . Impact . | . . . . Slashing . | . . . . Piercing . | . . . . Sneak Attacks . | . . . . Combat Hostiles . | . . . . Follow-up Attacks . | . . . . Damage Inflicted 2119 | . 772 683 664 Guns 568 | . 479 . 89 Cannons 1209 | . 293 341 575 Explosions 342 | . . 342 . Melee . | . . . . Ramming . | . . . . Kinetic 1069 | . 772 176 121 Thermal 708 | . . 165 543 Explosive 342 | . . 342 . Electromagnetic . | . . . . Impact . | . . . . Slashing . | . . . . Piercing . | . . . . Highest Corruption . | . . . . Average Corruption . | . . . . Corruption Purged . | . . . . Corruption Blocked . | . . . . Overload Shots . | . . . . Overflow Damage 24 | . . 24 . Projectiles . | . . . . Explosions 24 | . . 24 . Melee . | . . . . Knockbacks 3 | . 3 . . Impact . | . . . . Kinetic 3 | . 3 . . Secondary . | . . . . Self-Inflicted Damage 23 | . . 23 . Shots 2 | . . 2 . Rammed . | . . . . Targets Rammed . | . . . . Kicked . | . . . . Crushed . | . . . . Highest Temperature 319 | . 41 260 319 Average Temperature 79 | . 10 90 117 Received Heat Transfer 822 | . 348 180 294 Effects 1 | . . . 1 Energy Bleed 1 | . . . 1 Siege Activations . | . . . . Robots Corrupted . | . . . . Combat Hostiles . | . . . . Parts Fried . | . . . . Impact Corruptions . | . . . . Robots Melted 2 | . . 2 . Combat Hostiles 2 | . . 2 . Parts Melted 10 | . . 2 8 Heat Transferred 1332 | . . 296 1036 Parts Sabotaged . | . . . . Parts Stolen . | . . . . Parts Stripped . | . . . . Power Chain Reactions . | . . . . Alert | -11 -10 -9 -9 ------- Run | Yrd Mat Mat Sto Peak Influence 387 | . 125 326 387 Initial 137 | . . 31 137 Average 106 | . 49 187 259 Maximum Alert Level 1 | . . 1 1 Low Security (%) 75 | 100 100 41 19 Level 1 24 | . . 58 80 Level 2 . | . . . . Level 3 . | . . . . Level 4 . | . . . . Level 5 . | . . . . High Security . | . . . . Max Security . | . . . . Squads Dispatched 4 | . 1 1 2 Investigation 1 | . 1 . . Extermination . | . . . . Reinforcement 2 | . . 1 1 Assault . | . . . . Garrison 1 | . . . 1 Intercept . | . . . . Searches Triggered . | . . . . Construction Impeded . | . . . . Haulers Reinforced . | . . . . Active Scanning Responses . | . . . . Cargo Convoy Interrupts . | . . . . Stealth | -11 -10 -9 -9 --------- Run | Yrd Mat Mat Sto Distress Signals 2 | . 1 . 1 Communications Jammed . | . . . . Distress Signals . | . . . . Times Spotted 30 | . 8 9 13 Peak Tracking Total 4 | . 3 3 4 Tactical Retreats . | . . . . Traps | -11 -10 -9 -9 ------- Run | Yrd Mat Mat Sto Traps Triggered 1 | . 1 . . Indirectly . | . . . . Trap Hack Attempts . | . . . . Triggered . | . . . . Disarmed . | . . . . Reprogrammed . | . . . . Reused . | . . . . Traps Extracted . | . . . . Installed . | . . . . Triggered . | . . . . Machines | -11 -10 -9 -9 ---------- Run | Yrd Mat Mat Sto Machines Disabled . | . . . . Max in Single Turn . | . . . . Machines Repaired . | . . . . Machines Dismantled . | . . . . Machines Sabotaged . | . . . . Overloaded Fab Kills . | . . . . Hacking | -11 -10 -9 -9 --------- Run | Yrd Mat Mat Sto Machines Accessed 1 | . 1 . . Terminals 1 | . 1 . . Fabricators . | . . . . Repair Stations . | . . . . Recycling Units . | . . . . Scanalyzers . | . . . . Garrison Access . | . . . . Total Hacks 2 | . 2 . . Successful 1 | . 1 . . Failed 1 | . 1 . . Catastrophic . | . . . . Database Lockouts . | . . . . Manual . | . . . . Terminals 2 | . 2 . . Fabricators . | . . . . Repair Stations . | . . . . Recycling Units . | . . . . Scanalyzers . | . . . . Garrison Access . | . . . . Terminal Hacks 1 | . 1 . . Robot Analysis 1 | . 1 . . Fabricator Hacks . | . . . . Repair Station Hacks . | . . . . Recycling Unit Hacks . | . . . . Scanalyzer . | . . . . Garrison Access Hacks . | . . . . Unauthorized Hacks . | . . . . Terminals . | . . . . Fabricators . | . . . . Repair Stations . | . . . . Recycling Units . | . . . . Scanalyzers . | . . . . Garrison Access . | . . . . Data Cores Recovered . | . . . . Used . | . . . . Hacking Detections . | . . . . Full Trace Events . | . . . . Feedback Events . | . . . . Feedback Blocked . | . . . . Robot Schematics Acquired . | . . . . Robots Built . | . . . . Authchips . | . . . . Time . | . . . . Total Robot Build Rating . | . . . . Part Schematics Acquired . | . . . . Parts Built . | . . . . Authchips . | . . . . Time . | . . . . Total Part Build Rating . | . . . . Parts Repaired . | . . . . Time . | . . . . Parts Recycled . | . . . . Recycled Matter . | . . . . Retrieved Matter . | . . . . Retrieved Components . | . . . . Parts Scanalyzed . | . . . . Part Schematics Acquired . | . . . . Parts Damaged . | . . . . Bothacking | -11 -10 -9 -9 ------------ Run | Yrd Mat Mat Sto Used RIF Installer . | . . . . Robots Hacked . | . . . . Non-combat . | . . . . Combat . | . . . . Robot Hacks Applied . | . . . . Relay Couplers Released . | . . . . Fabnet Peak Effective % . | . . . . Robots Rewired . | . . . . Allies Hacked . | . . . . Hacks Repelled . | . . . . Allies | -11 -10 -9 -9 -------- Run | Yrd Mat Mat Sto Total Allies . | . . . . Largest Group . | . . . . Highest-Rated Group . | . . . . Highest-Rated Ally . | . . . . Total Orders . | . . . . Ally Attacks . | . . . . Total Damage . | . . . . Kills . | . . . . Allies Corrupted . | . . . . Allies Melted . | . . . . Intel | -11 -10 -9 -9 ------- Run | Yrd Mat Mat Sto Robot Analysis Total 1 | . 1 . . Derelict Logs Recovered . | . . . . Drone Launches . | . . . . Drone Recoveries . | . . . . Exploration | -11 -10 -9 -9 ------------- Run | Yrd Mat Mat Sto Turns Passed 1253 | 73 717 311 152 Spaces Moved 494 | 45 285 134 30 Core 27 | 9 17 . 1 Treads 415 | 36 216 134 29 Legs 52 | . 52 . . Wheels . | . . . . Hover . | . . . . Flight . | . . . . Fastest Speed 50 | 50 160 160 160 Average Speed 179 | 138 195 160 171 Slowest Speed 500 | 160 450 160 500 Overloaded Moves . | . . . . Propulsion Burnouts . | . . . . Robots Hopped . | . . . . Cave-ins Triggered . | . . . . Exploration Rate (%) 18 | 4 40 18 12 Regions Visited 3 Branch Regions 1 Pre-discovered Areas . | . . . . Known Exits Taken . | . . . . Unknown Exits Taken 3 | 1 1 1 . Scrap Searched . | . . . . Spaces Dug . | . . . . Terrain Destroyed 65 | . . 65 . Melee . | . . . . Projectile . | . . . . AOE 65 | . . 65 . Terrain Rammed . | . . . . Walls Destroyed . | . . . . Machines Disabled . | . . . . Actions | -11 -10 -9 -9 --------- Run | Yrd Mat Mat Sto Total 678 | 56 355 188 79 Wait 7 | . . 5 2 Move 491 | 44 284 133 30 Hop . | . . . . Pick Up 31 | 6 12 13 . Fast Attach . | . . . . Attach 19 | 6 5 3 5 Detach . | . . . . Swap 5 | . 2 3 . Drop 5 | . 2 3 . Fire 120 | . 50 28 42 Melee . | . . . . Ram . | . . . . Kick . | . . . . Crush . | . . . . Escape Stasis . | . . . . Rewire . | . . . . Trap . | . . . . Miscellaneous . | . . . . Route ------- -11/Scrapyard -10/Materials -9/Materials -9/Storage History --------- Turn | Location | Event 5 | -11/Scrapyard | Discovered new exit (range 16) 74 | -11/Scrapyard | Entered Materials 317 | -10/Materials | Build established: Mutant 455 | -10/Materials | Discovered new exit (range 12) 469 | -10/Materials | Core integrity fell below 50% 528 | -10/Materials | Lost 4 parts (1p2n1w) 791 | -10/Materials | Entered another Materials area 791 | -9/Materials | Evolved 2 slots: Utility x2 1026 | -9/Materials | Discovered new exit (range 18) 1102 | -9/Materials | Entered Storage 1206 | -9/Storage | Core integrity fell below 50% 1223 | -9/Storage | Garrison activated, responded to threat 1233 | -9/Storage | Core integrity fell below 20% 1254 | -9/Storage | Destroyed by Y-45 Defender with Beam Rifle Last Messages --------------- K-01 Serf collects debris. R-06 Scavenger collects Lgt. Treads. R-06 Scavenger collects Lgt. Ion Engine. K-01 Serf collects debris. R-06 Scavenger collects Lgt. Armor Plating. R-06 Scavenger collects Med. Matter Pod. R-06 Scavenger collects Lgt. Treads. S-10 Pest Lgt. Ion Engine blasted off. K-01 Serf collects debris. R-06 Scavenger collects Heat Sink. M-13 Machinist repairs R-06 Scavenger. K-01 Serf collects debris. S-10 Pest destroyed. M-13 Machinist repairs Tractor Beam. R-06 Scavenger collects Lgt. Treads. K-01 Serf collects debris. S-10 Pest destroyed. K-01 Serf collects debris. R-06 Scavenger collects Hvy. Assault Rifle. K-01 Serf collects debris. Map ----- +----------------------------------------------------+ | | | | | | | | | | | | | | | | | ??????????????########???????????????????????????? | | ?????????????# ???????????????????????????? | | ????????????## """ #??????????????????????????? | | ????????????#" """ #######????????????????????? | | ????????????#T """ # ###########??????????? | | ????????????#" # #??????????? | | ?????????????# """ =+ #??????????? | | ?????????????# """ =# #??????????? | | ?????????????# """! # %###+#######??????????? | | ?????????????# ##%*%##????????????????????? | | ?????????????##" "## ###%% ###???????????????????? | | ??????????????#"G??###?#=* ""#???????????????????? | | ??????????????# ???????# T"#???????????????????? | | ??????????????#????????# ""#???????????????????? | | ???????????????????????# ###???????????????????? | | ????????# ########## #?????????????????????? | | ???????? #?????????????????????? | | ???????? % r@ #?????????????????????? | | ???????? #?????????????????????? | | ????????# ####+##### #?????????????????????? | | ?????????##????????????# #?????????????????????? | | ???????????????????????#mYk#?????????????????????? | | ???????????????????????# %#?????????????????????? | | ???????????????????????#r #?????????????????????? | | ???????????????????????#% +?????????????????????? | | ???????????????????????# #?????????????????????? | | ???????????????????????#^^^#?????????????????????? | | ???????????????????????# % #?????????????????????? | | ???????????????????????# #?????????????????????? | | ??????????????????????? ?????????????????????? | | ??????????????????????? ?????????????????????? | | ??????????????????????? [?????????????????????? | | ??????????????????????? ?????????????????????? | | ??????????????????????? ?????????????????????? | | ???????????????????????##+##?????????????????????? | | ?????????????????????????????????????????????????? | | ?????????????????????????????????????????????????? | | ?????????????????????????????????????????????????? | | ?????????????????????????????????????????????????? | | ?????????????????????????????????????????????????? | | ?????????????????????????????????????????????????? | | ?????????????????????????????????????????????????? | +----------------------------------------------------+ Best States ------------- Heat Dissipation 38 Energy Generation 14 Energy Capacity 350 Matter Stores 300 Matter Capacity 300 Sight Range 18 Terrain Scan Density 10 Propulsion Shielding 33 Evasion (%) 40 Recoil Reduction 2 Item Schematics ----------------- None Robot Schematics ------------------ None Fabricated ------------ Nothing Alien Tech Used ----------------- None Achievements -------------- None Challenges ------------ None Game ------ Seed WeightEfficiencyDerivative Manual? 0 Play Time 00:11:16 Cumulative 6.0 hours Start 2024.04.09 @ 16:32:10 End 2024.04.09 @ 16:41:33 Sessions 1 Manual Loads 0 Difficulty Rogue Special Mode None Game No. 14 Rogue 3 Adventurer 11 Explorer 0 Win Type - Total 0 Types 0/0/0/0/0/0/0/0/0 Lore% 1 Gallery% 19 Achievement% 12 Wizard Run 0 Options --------- Layout 1 ASCII 0 Keyboard 0 Movement Mouse Keybinds 0 Fullscreen 1 Font 32/Smallcaps Map View 50x35 Zoom Use 0% Tactical HUD 0 Map Filters NONE Filters NONE Steam 1 RUN: 1e57019e-7f05-4afa-ad69-5a35c4fa3aba